fUSD/lending_fUSD_20250618
["ID","MTS","AMOUNT","RATE_DAILY","PERIOD"]
[366396653,1750230646414,-500.0,0.00016438,2]
[366396656,1750230646424,-1432.99,0.00016438,2]
[366396658,1750230646433,-500.0,0.00016438,2]
[366396660,1750230646443,-500.0,0.00016438,2]
[366396661,1750230646454,-500.0,0.00016438,2]
[366396664,1750230646464,-746.85,0.00016438,2]
[366396666,1750230646473,-1400.67,0.00016438,2]
[366396668,1750230646483,-490.0,0.00016438,2]
[366396669,1750230646492,-8108.88,0.00016438,2]
[366396672,1750230646502,-1255.38,0.00016438,2]
[366396674,1750230646511,-151.0,0.00016438,2]
[366396676,1750230646520,-490.0,0.00016438,2]
[366396677,1750230646532,-3173.6,0.00016438,2]
[366396679,1750230646541,-3395.91,0.00016438,2]
[366396682,1750230646551,-1236.02,0.00016438,2]
[366396683,1750230646561,-151.0,0.00016438,2]
[366396685,1750230646570,-490.0,0.00016438,2]
[366396687,1750230646580,-656.81,0.00016438,2]
[366396690,1750230646589,-151.0,0.00016438,2]
[366396692,1750230646599,-2439.42,0.00016438,2]
[366396693,1750230646610,-490.0,0.00016438,2]
[366396696,1750230646621,-1790.7,0.00016438,2]
[366396698,1750230646633,-152.559455,0.00016438,2]
[366396699,1750230646643,-490.0,0.00016438,2]
[366396702,1750230646652,-1871.28,0.00016438,2]
[366396704,1750230646662,-490.0,0.00016438,2]
[366396705,1750230646671,-151.0,0.00016438,2]
[366396707,1750230646681,-6313.64,0.00016438,2]
[366396710,1750230646690,-490.0,0.00016438,2]
[366396711,1750230646700,-4677.88,0.00016438,2]
[366396713,1750230646709,-2236.66,0.00016438,2]
[366396715,1750230646719,-1902.98,0.00016438,2]
[366396718,1750230646728,-1846.4,0.00016438,2]
[366396720,1750230646738,-1215.76,0.00016438,2]
[366396722,1750230646747,-490.0,0.00016438,2]
[366396724,1750230646756,-490.0,0.00016438,2]
[366396726,1750230646766,-490.0,0.00016438,2]
[366396727,1750230646776,-490.0,0.00016438,2]
[366396729,1750230646785,-638.19,0.00016438,2]
[366396732,1750230646795,-490.0,0.00016438,2]
[366396734,1750230646805,-516.52,0.00016438,2]
[366396736,1750230646815,-151.0,0.00016438,2]
[366396738,1750230646825,-2303.24,0.00016438,2]
[366396740,1750230646834,-490.0,0.00016438,2]
[366396742,1750230646844,-422.30403716,0.00016438,2]
[366396744,1750230646854,-1418.79,0.00016438,2]
[366396746,1750230646864,-1157.29,0.00016438,2]
[366396748,1750230646874,-3012.65,0.00016438,2]
[366396750,1750230646883,-490.0,0.00016438,2]
[366396752,1750230646893,-1012.45,0.00016438,2]
[366396754,1750230646903,-712.74,0.00016438,2]
[366396756,1750230646913,-749.22,0.00016438,2]
[366396758,1750230646926,-1341.46,0.00016438,2]
[366396760,1750230646936,-1103.85,0.00016438,2]
[366396762,1750230646946,-490.0,0.00016438,2]
[366396764,1750230646957,-266.08778228,0.00016438,2]
[366396766,1750230646967,-490.0,0.00016438,2]
[366396768,1750230646978,-1879.83,0.00016438,2]
[366396770,1750230646989,-735.15,0.00016438,2]
[366396772,1750230646999,-490.0,0.00016438,2]
[366396774,1750230647009,-490.0,0.00016438,2]
[366396776,1750230647019,-569.32,0.00016438,2]
[366396789,1750230647149,-702.2,0.00016438,2]
[366396791,1750230647160,-150.0,0.00016438,2]
[366396793,1750230647170,-3916.05,0.00016438,2]
[366396795,1750230647179,-709.77,0.00016438,2]
[366396797,1750230647189,-3567.03,0.00016438,2]
[366396799,1750230647198,-490.0,0.00016438,2]
[366396801,1750230647207,-1276.65,0.00016438,2]
[366396803,1750230647216,-490.0,0.00016438,2]
[366396805,1750230647225,-500.0,0.00016438,2]
[366396806,1750230647234,-1233.66,0.00016438,2]
[366396807,1750230647243,-490.0,0.00016438,2]
[366396808,1750230647252,-150.0,0.00016438,2]
[366396809,1750230647261,-1105.56,0.00016438,2]
[366396810,1750230647270,-500.0,0.00016438,2]
[366396811,1750230647279,-7569.72,0.00016438,2]
[366396812,1750230647288,-490.0,0.00016438,2]
[366396813,1750230647297,-150.0,0.00016438,2]
[366396814,1750230647306,-2098.21,0.00016438,2]
[366396815,1750230647315,-524.09,0.00016438,2]
[366396816,1750230647324,-495.10443526,0.00016438,2]
[366396817,1750230647333,-222.60531671,0.00016438,2]
[366396818,1750230647342,-151.0,0.00016438,2]
[366396819,1750230647351,-500.0,0.00016438,2]
[366396820,1750230647361,-740.47,0.00016438,2]
[366396821,1750230647369,-2309.41,0.00016438,2]
[366396822,1750230647378,-500.0,0.00016438,2]
[366396823,1750230647387,-490.0,0.00016438,2]
[366396824,1750230647396,-490.0,0.00016438,2]
[366396825,1750230647405,-150.0,0.00016438,2]
[366396826,1750230647414,-1086.58,0.00016438,2]
[366396827,1750230647423,-805.76,0.00016438,2]
[366396828,1750230647432,-490.0,0.00016438,2]
[366396829,1750230647442,-490.0,0.00016438,2]
[366396830,1750230647451,-3763.77,0.00016438,2]
[366396831,1750230647461,-490.0,0.00016438,2]
[366396832,1750230647471,-1384.45,0.00016438,2]
[366396833,1750230647480,-2631.94,0.00016438,2]
[366396834,1750230647489,-554.44,0.00016438,2]
[366396835,1750230647499,-490.0,0.00016438,2]
[366396836,1750230647509,-19965.36,0.00016438,2]
[366396837,1750230647518,-657.75,0.00016438,2]
[366396838,1750230647527,-3463.32,0.00016438,2]
[366396839,1750230647537,-490.0,0.00016438,2]
[366396840,1750230647546,-200.3534713,0.00016438,2]
[366396841,1750230647556,-843.56,0.00016438,2]
[366396842,1750230647565,-490.0,0.00016438,2]
[366396843,1750230647574,-151.0,0.00016438,2]
[366396844,1750230647584,-561.79,0.00016438,2]
[366396845,1750230647594,-490.0,0.00016438,2]
[366396846,1750230647604,-10406.07,0.00016438,2]
[366396847,1750230647614,-660.59,0.00016438,2]
[366396848,1750230647623,-925.06,0.00016438,2]
[366396849,1750230647632,-1902.68,0.00016438,2]
[366396850,1750230647642,-490.0,0.00016438,2]
[366396851,1750230647651,-490.0,0.00016438,2]
[366396852,1750230647660,-151.0,0.00016438,2]
[366396853,1750230647670,-7479.35,0.00016438,2]
[366396854,1750230647679,-490.0,0.00016438,2]
[366396855,1750230647689,-2248.02,0.00016438,2]
[366396856,1750230647698,-490.0,0.00016438,2]
[366396857,1750230647707,-490.0,0.00016438,2]
[366396858,1750230647717,-581.61,0.00016438,2]
[366396859,1750230647727,-919.87,0.00016438,2]
[366396860,1750230647736,-1128.09,0.00016438,2]
[366396861,1750230647746,-3882.34,0.00016438,2]
[366396862,1750230647755,-1404.82,0.00016438,2]
[366396863,1750230647765,-1327.68,0.00016438,2]
[366396865,1750230647774,-459.43238104,0.00016438,2]
[366396866,1750230647784,-602.22,0.00016438,2]
[366396867,1750230647794,-490.52395401,0.00016438,2]
[366396869,1750230647803,-602.72,0.00016438,2]
[366396870,1750230647812,-9110.37,0.00016438,2]
[366396871,1750230647822,-2317.83,0.00016438,2]
[366396872,1750230647831,-6914.81,0.00016438,2]
[366396874,1750230647842,-529.47,0.00016438,2]
[366396876,1750230647851,-4567.13,0.00016438,2]
[366396877,1750230647861,-1303.38,0.00016438,2]
[366396878,1750230647871,-490.0,0.00016438,2]
[366396879,1750230647880,-490.0,0.00016438,2]
[366396880,1750230647890,-492.32452562,0.00016438,2]
[366396881,1750230647899,-608.03555425,0.00016438,2]
[366396883,1750230647911,-5203.1,0.00016438,2]
[366396885,1750230647920,-1218.56,0.00016438,2]
[366396887,1750230647929,-605.97,0.00016438,2]
[366396888,1750230647938,-1013.5,0.00016438,2]
[366396890,1750230647948,-490.0,0.00016438,2]
[366396892,1750230647957,-490.0,0.00016438,2]
[366396894,1750230647966,-2306.62,0.00016438,2]
[366396896,1750230647976,-151.0,0.00016438,2]
[366396898,1750230647984,-1174.25,0.00016438,2]
[366396900,1750230647994,-490.0,0.00016438,2]
[366396902,1750230648002,-490.0,0.00016438,2]
[366396904,1750230648012,-1383.85,0.00016438,2]
[366396906,1750230648021,-490.0,0.00016438,2]
[366396908,1750230648031,-1159.64,0.00016438,2]
[366396910,1750230648041,-6632.99,0.00016438,2]
[366396912,1750230648051,-491.14106965,0.00016438,2]
[366396914,1750230648061,-1295.9,0.00016438,2]
[366396916,1750230648070,-490.0,0.00016438,2]
[366396918,1750230648080,-1926.61,0.00016438,2]
[366396920,1750230648090,-3722.45,0.00016438,2]
[366396922,1750230648100,-3722.45,0.00016438,2]
[366396924,1750230648112,-3722.45,0.00016438,2]
[366396926,1750230648121,-1243.9,0.00016438,2]
[366396928,1750230648132,-3722.45,0.00016438,2]
[366396930,1750230648142,-1505.88,0.00016438,2]
[366396932,1750230648151,-591.33,0.00016438,2]
[366396934,1750230648161,-490.0,0.00016438,2]
[366396936,1750230648171,-490.0,0.00016438,2]
[366396938,1750230648181,-555.89,0.00016438,2]
[366396940,1750230648191,-1767.83,0.00016438,2]
[366396941,1750230648202,-151.0,0.00016438,2]
[366396943,1750230648212,-3783.99,0.00016438,2]
[366396946,1750230648223,-860.34,0.00016438,2]
[366396948,1750230648233,-1141.79,0.00016438,2]
[366396949,1750230648242,-1568.07,0.00016438,2]
[366396951,1750230648252,-1763.69,0.00016438,2]
[366396953,1750230648261,-490.0,0.00016438,2]
[366396955,1750230648271,-644.26,0.00016438,2]
[366396957,1750230648280,-1328.11,0.00016438,2]
[366396959,1750230648290,-490.0,0.00016438,2]
[366396961,1750230648300,-1697.96,0.00016438,2]
[366396962,1750230648309,-490.0,0.00016438,2]
[366396963,1750230648318,-3401.94,0.00016438,2]
[366396964,1750230648328,-612.97,0.00016438,2]
[366396966,1750230648337,-23930.49,0.00016438,2]
[366396967,1750230648346,-490.0,0.00016438,2]
[366396968,1750230648356,-2701.21,0.00016438,2]
[366396969,1750230648366,-767.96,0.00016438,2]
[366396970,1750230648375,-500.0,0.00016438,2]
[366396971,1750230648384,-490.0,0.00016438,2]
[366396972,1750230648394,-2182.46,0.00016438,2]
[366396973,1750230648403,-490.0,0.00016438,2]
[366396974,1750230648412,-1515.9,0.00016438,2]
[366396975,1750230648422,-1084.79,0.00016438,2]
[366396976,1750230648431,-1769.27,0.00016438,2]
[366396977,1750230648440,-863.78,0.00016438,2]
[366396978,1750230648449,-490.0,0.00016438,2]
[366396979,1750230648459,-150.22613624,0.00016438,2]
[366396980,1750230648468,-2405.228,0.00016448,2]
[366396981,1750230648477,-244.355,0.00016448,2]
[366396982,1750230648487,-1608.0,0.0001645,2]
[366396983,1750230648496,-150.0,0.00016453,2]
[366396984,1750230648506,-202.79560054,0.00016465,2]
[366396985,1750230648516,-150.0,0.00016465,2]
[366396986,1750230648526,-500.0,0.00016465,2]
[366396987,1750230648536,-150.0,0.00016465,2]
[366396988,1750230648545,-150.0,0.00016465,2]
[366396989,1750230648555,-506.17533536,0.00016465,2]
[366396990,1750230648565,-150.0,0.00016465,2]
[366396991,1750230648574,-150.0,0.00016465,2]
[366396992,1750230648584,-500.0,0.00016465,2]
[366396993,1750230648593,-500.0,0.00016465,2]
[366396994,1750230648603,-156.54496774,0.00016465,2]
[366396995,1750230648619,-150.0,0.00016465,2]
[366396996,1750230648629,-500.0,0.00016465,2]
[366396997,1750230648638,-150.0,0.00016465,2]
[366396998,1750230648649,-150.0,0.00016465,2]
[366396999,1750230648658,-500.0,0.00016465,2]
[366397000,1750230648668,-150.0,0.00016465,2]
[366397001,1750230648679,-500.0,0.00016465,2]
[366397002,1750230648688,-152.6954206,0.00016465,2]
[366397003,1750230648698,-500.0,0.00016465,2]
[366397004,1750230648708,-500.0,0.00016465,2]
[366397005,1750230648717,-150.0,0.00016465,2]
[366397006,1750230648727,-195.15,0.0001647,2]
[366397007,1750230648736,-500.0,0.00016473,2]
[366397008,1750230648746,-500.8318122,0.00016473,2]
[366397009,1750230648755,-160.10644752,0.00016473,2]
[366397010,1750230648764,-500.0,0.00016473,2]
[366397011,1750230648774,-1608.0,0.00016481,2]
[366397012,1750230648784,-1056.7595708,0.00016484,2]
[366397013,1750230648793,-179.73286433,0.00016484,2]
[366397014,1750230648804,-423.79,0.00016493,2]
[366397015,1750230648814,-164.97,0.00016493,2]
[366397016,1750230648823,-151.84375591,0.00016493,2]
[366397017,1750230648833,-500.0,0.00016493,2]
[366397018,1750230648842,-150.0,0.00016493,2]
[366397019,1750230648852,-150.0,0.00016493,2]
[366397020,1750230648863,-205.83489303,0.00016493,2]
[366397021,1750230648872,-150.0,0.00016493,2]
[366397022,1750230648882,-500.0,0.00016493,2]
[366397023,1750230648892,-500.0,0.00016493,2]
[366397024,1750230648901,-150.98885557,0.00016493,2]
[366397025,1750230648911,-500.0,0.00016493,2]
[366397026,1750230648920,-150.0,0.00016493,2]
[366397027,1750230648930,-150.0,0.00016493,2]
[366397028,1750230648939,-500.0,0.00016493,2]
[366397029,1750230648949,-150.0,0.00016493,2]
[366397030,1750230648958,-500.0,0.00016493,2]
[366397031,1750230648968,-500.0,0.00016493,2]
[366397032,1750230648977,-303.84543322,0.00016493,2]
[366397033,1750230648987,-283.39334353,0.00016493,2]
[366397034,1750230648997,-20744.54,0.000165,2]
[366397035,1750230649006,-150.0,0.00016501,2]
[366397036,1750230649016,-500.0,0.0001652,2]
[366397037,1750230649025,-207.07030337,0.0001652,2]
[366397038,1750230649035,-152.72139541,0.0001652,2]
[366397039,1750230649045,-153.05246388,0.0001652,2]
[366397040,1750230649055,-500.0,0.0001652,2]
[366397041,1750230649064,-500.0,0.0001652,2]
[366397042,1750230649074,-500.0,0.0001652,2]
[366397043,1750230649084,-218.31091285,0.0001652,2]
[366397044,1750230649093,-150.0,0.0001652,2]
[366397045,1750230649105,-500.0,0.0001652,2]
[366397046,1750230649115,-256.21253458,0.0001652,2]
[366397047,1750230649125,-359.80274753,0.0001652,2]
[366397048,1750230649135,-168.74388333,0.00016539,2]
[366397049,1750230649144,-528.29859729,0.00016548,2]
[366397050,1750230649154,-500.0,0.00016548,2]
[366397051,1750230649163,-156.06207231,0.00016548,2]
[366397052,1750230649173,-500.0,0.00016548,2]
[366397053,1750230649182,-205.98870104,0.00016548,2]
[366397054,1750230649192,-312.72468752,0.00016548,2]
[366397055,1750230649201,-531.0340463,0.00016548,2]
[366397056,1750230649211,-1056.7595708,0.00016557,2]
[366397057,1750230649220,-179.73286433,0.00016557,2]
[366397058,1750230649230,-587.0,0.00016569,2]
[366397059,1750230649240,-500.0,0.00016575,2]
[366397060,1750230649250,-244.68021467,0.00016575,2]
[366397061,1750230649264,-1047.90200037,0.0001659,2]
[366397062,1750230649273,-785.769122,0.00016592,2]
[366397063,1750230649282,-669.62,0.000166,2]
[366397064,1750230649293,-500.0,0.000166,2]
[366397065,1750230649303,-3722.45,0.000166,2]
[366397066,1750230649312,-500.0,0.00016601,2]
[366397067,1750230649322,-500.0,0.00016601,2]
[366397068,1750230649331,-500.0,0.00016601,2]
[366397069,1750230649341,-2203.92,0.00016601,2]
[366397070,1750230649352,-2203.92,0.00016601,2]
[366397071,1750230649362,-2203.92,0.00016601,2]
[366397072,1750230649371,-500.0,0.00016601,2]
[366397073,1750230649382,-500.0,0.00016601,2]
[366397074,1750230649391,-500.0,0.00016601,2]
[366397075,1750230649403,-164.66,0.00016601,2]
[366397076,1750230649413,-3722.45,0.00016601,2]
[366397077,1750230649423,-3722.45,0.00016601,2]
[366397078,1750230649434,-3722.45,0.00016601,2]
[366397079,1750230649444,-300.0,0.00016601,2]
[366397080,1750230649453,-300.0,0.00016601,2]
[366397081,1750230649463,-361.15462794,0.00016601,2]
[366397082,1750230649473,-300.0,0.00016601,2]
[366397083,1750230649482,-300.0,0.00016601,2]
[366397084,1750230649492,-490.0,0.00016602,2]
[366397085,1750230649501,-490.0,0.00016602,2]
[366397086,1750230649511,-490.0,0.00016602,2]
[366397087,1750230649520,-490.0,0.00016602,2]
[366397088,1750230649530,-490.0,0.00016602,2]
[366397089,1750230649539,-836.87,0.00016602,2]
[366397090,1750230649549,-490.0,0.00016602,2]
[366397091,1750230649558,-490.0,0.00016602,2]
[366397092,1750230649567,-490.0,0.00016602,2]
[366397093,1750230649576,-1231.49,0.00016602,2]
[366397094,1750230649586,-525.5,0.00016602,2]
[366397095,1750230649595,-490.0,0.00016602,2]
[366397096,1750230649605,-193.45569526,0.00016602,2]
[366397097,1750230649615,-490.0,0.00016602,2]
[366397098,1750230649625,-595.3,0.00016602,2]
[366397099,1750230649635,-701.12,0.00016602,2]
[366397100,1750230649643,-490.0,0.00016602,2]
[366397101,1750230649653,-490.0,0.00016602,2]
[366397102,1750230649663,-490.0,0.00016602,2]
[366397103,1750230649673,-578.89,0.00016602,2]
[366397104,1750230649682,-1212.01,0.00016602,2]
[366397105,1750230649691,-490.0,0.00016602,2]
[366397106,1750230649701,-816.96,0.00016602,2]
[366397107,1750230649711,-490.0,0.00016602,2]
[366397108,1750230649721,-490.0,0.00016602,2]
[366397109,1750230649731,-201.31721911,0.00016602,2]
[366397110,1750230649740,-490.0,0.00016602,2]
[366397111,1750230649750,-1003.3,0.00016602,2]
[366397112,1750230649760,-700.34,0.00016602,2]
[366397113,1750230649769,-490.0,0.00016602,2]
[366397114,1750230649778,-494.48,0.00016602,2]
[366397115,1750230649788,-490.0,0.00016602,2]
[366397116,1750230649798,-490.0,0.00016602,2]
[366397117,1750230649808,-490.0,0.00016602,2]
[366397118,1750230649817,-524.12,0.00016602,2]
[366397119,1750230649827,-490.0,0.00016602,2]
[366397120,1750230649836,-490.0,0.00016602,2]
[366397121,1750230649845,-519.85,0.00016602,2]
[366397122,1750230649855,-490.0,0.00016602,2]
[366397123,1750230649868,-490.0,0.00016602,2]
[366397124,1750230649878,-176.20201863,0.00016602,2]
[366397125,1750230649887,-490.0,0.00016602,2]
[366397126,1750230649897,-671.43,0.00016602,2]
[366397127,1750230649905,-490.0,0.00016602,2]
[366397128,1750230649916,-1386.7,0.00016602,2]
[366397129,1750230649925,-490.0,0.00016602,2]
[366397130,1750230649934,-490.0,0.00016602,2]
[366397131,1750230649946,-290.72905091,0.00016602,2]
[366397132,1750230649956,-490.0,0.00016602,2]
[366397133,1750230649965,-490.0,0.00016602,2]
[366397134,1750230649975,-490.0,0.00016602,2]
[366397135,1750230649985,-490.0,0.00016602,2]
[366397136,1750230649994,-490.0,0.00016602,2]
[366397137,1750230650004,-632.87,0.00016602,2]
[366397138,1750230650014,-490.0,0.00016602,2]
[366397139,1750230650023,-917.54,0.00016602,2]
[366397140,1750230650033,-490.0,0.00016602,2]
[366397141,1750230650042,-490.0,0.00016602,2]
[366397142,1750230650052,-490.0,0.00016602,2]
[366397143,1750230650062,-613.36,0.00016602,2]
[366397144,1750230650071,-490.0,0.00016602,2]
[366397145,1750230650081,-490.0,0.00016602,2]
[366397146,1750230650090,-490.0,0.00016602,2]
[366397147,1750230650102,-490.0,0.00016602,2]
[366397148,1750230650114,-490.0,0.00016602,2]
[366397149,1750230650124,-490.0,0.00016602,2]
[366397150,1750230650133,-490.0,0.00016602,2]
[366397151,1750230650143,-490.0,0.00016602,2]
[366397152,1750230650154,-204.94677755,0.00016602,2]
[366397153,1750230650163,-490.0,0.00016602,2]
[366397154,1750230650173,-490.0,0.00016602,2]
[366397155,1750230650184,-490.0,0.00016602,2]
[366397156,1750230650193,-490.0,0.00016602,2]
[366397157,1750230650202,-713.78,0.00016602,2]
[366397158,1750230650211,-490.0,0.00016602,2]
[366397159,1750230650220,-490.0,0.00016602,2]
[366397160,1750230650230,-519.23,0.00016602,2]
[366397161,1750230650239,-495.84,0.00016602,2]
[366397162,1750230650248,-490.0,0.00016602,2]
[366397163,1750230650258,-490.0,0.00016602,2]
[366397164,1750230650267,-490.0,0.00016602,2]
[366397165,1750230650276,-490.0,0.00016602,2]
[366397166,1750230650286,-419.47429114,0.00016602,2]
[366397167,1750230650296,-474.65469258,0.00016602,2]
[366397168,1750230650305,-490.0,0.00016602,2]
[366397169,1750230650314,-829.31,0.00016602,2]
[366397170,1750230650324,-349.32403921,0.00016602,2]
[366397171,1750230650334,-490.0,0.00016602,2]
[366397172,1750230650343,-490.0,0.00016602,2]
[366397173,1750230650353,-1500.65,0.00016602,2]
[366397174,1750230650363,-490.0,0.00016602,2]
[366397175,1750230650373,-852.7,0.00016602,2]
[366397176,1750230650383,-490.0,0.00016602,2]
[366397177,1750230650391,-490.0,0.00016602,2]
[366397178,1750230650400,-769.61,0.00016602,2]
[366397179,1750230650409,-260.51643508,0.00016602,2]
[366397180,1750230650419,-490.0,0.00016602,2]
[366397181,1750230650429,-490.0,0.00016602,2]
[366397182,1750230650438,-1110.42,0.00016602,2]
[366397183,1750230650448,-490.0,0.00016602,2]
[366397184,1750230650457,-490.0,0.00016602,2]
[366397185,1750230650467,-490.0,0.00016602,2]
[366397186,1750230650477,-490.0,0.00016602,2]
[366397187,1750230650486,-490.0,0.00016602,2]
[366397188,1750230650495,-935.79,0.00016602,2]
[366397189,1750230650505,-756.89,0.00016602,2]
[366397190,1750230650514,-490.0,0.00016602,2]
[366397191,1750230650523,-490.0,0.00016602,2]
[366397192,1750230650533,-1296.85,0.00016602,2]
[366397193,1750230650543,-490.0,0.00016602,2]
[366397194,1750230650552,-490.0,0.00016602,2]
[366397195,1750230650562,-592.13,0.00016602,2]
[366397196,1750230650570,-552.51,0.00016602,2]
[366397197,1750230650579,-490.0,0.00016602,2]
[366397198,1750230650588,-490.0,0.00016602,2]
[366397199,1750230650597,-490.0,0.00016602,2]
[366397200,1750230650605,-500.75,0.00016602,2]
[366397201,1750230650618,-490.0,0.00016602,2]
[366397202,1750230650627,-272.763803,0.00016602,2]
[366397203,1750230650636,-1059.21,0.00016602,2]
[366397204,1750230650645,-490.0,0.00016602,2]
[366397205,1750230650655,-490.0,0.00016602,2]
[366397206,1750230650665,-1095.74,0.00016602,2]
[366397207,1750230650675,-606.02,0.00016602,2]
[366397208,1750230650685,-754.98,0.00016602,2]
[366397209,1750230650695,-490.0,0.00016602,2]
[366397210,1750230650704,-490.0,0.00016602,2]
[366397211,1750230650714,-520.3,0.00016602,2]
[366397212,1750230650723,-490.0,0.00016602,2]
[366397213,1750230650733,-580.19,0.00016602,2]
[366397214,1750230650743,-490.0,0.00016602,2]
[366397215,1750230650752,-490.0,0.00016602,2]
[366397216,1750230650762,-490.0,0.00016602,2]
[366397217,1750230650771,-490.0,0.00016602,2]
[366397218,1750230650780,-490.0,0.00016602,2]
[366397219,1750230650790,-490.0,0.00016602,2]
[366397220,1750230650799,-490.0,0.00016602,2]
[366397221,1750230650809,-535.7,0.00016602,2]
[366397222,1750230650819,-490.0,0.00016602,2]
[366397223,1750230650828,-1147.76,0.00016602,2]
[366397224,1750230650838,-518.23,0.00016602,2]
[366397225,1750230650848,-490.0,0.00016602,2]
[366397226,1750230650859,-659.86,0.00016602,2]
[366397227,1750230650868,-300.0,0.00016602,2]
[366397228,1750230650878,-326.42,0.00016602,2]
[366397229,1750230650887,-1263.87,0.00016602,2]
[366397230,1750230650897,-637.08,0.00016602,2]
[366397231,1750230650907,-571.5,0.00016602,2]
[366397232,1750230650918,-537.07,0.00016602,2]
[366397233,1750230650928,-1081.49,0.00016602,2]
[366397234,1750230650938,-1704.7,0.00016602,2]
[366397235,1750230650948,-490.0,0.00016602,2]
[366397236,1750230650957,-1075.53,0.00016602,2]
[366397237,1750230650966,-490.0,0.00016602,2]
[366397238,1750230650976,-490.0,0.00016602,2]
[366397239,1750230650986,-490.0,0.00016602,2]
[366397240,1750230650995,-490.0,0.00016602,2]
[366397241,1750230651004,-825.79,0.00016602,2]
[366397242,1750230651015,-583.34,0.00016602,2]
[366397243,1750230651025,-490.0,0.00016602,2]
[366397244,1750230651035,-682.35,0.00016602,2]
[366397245,1750230651044,-490.0,0.00016602,2]
[366397246,1750230651054,-275.08436073,0.00016602,2]
[366397247,1750230651064,-490.0,0.00016602,2]
[366397248,1750230651074,-1014.85,0.00016602,2]
[366397249,1750230651084,-714.83,0.00016602,2]
[366397250,1750230651094,-490.0,0.00016602,2]
[366397251,1750230651105,-698.38,0.00016602,2]
[366397252,1750230651115,-490.0,0.00016602,2]
[366397253,1750230651126,-1313.12,0.00016602,2]
[366397254,1750230651135,-490.0,0.00016602,2]
[366397255,1750230651145,-652.96,0.00016602,2]
[366397256,1750230651155,-739.91,0.00016602,2]
[366397257,1750230651165,-490.0,0.00016602,2]
[366397258,1750230651175,-490.0,0.00016602,2]
[366397259,1750230651185,-498.45,0.00016602,2]
[366397260,1750230651195,-151.0,0.00016602,2]
[366397261,1750230651205,-490.0,0.00016602,2]
[366397262,1750230651214,-490.0,0.00016602,2]
[366397263,1750230651223,-853.48,0.00016602,2]
[366397264,1750230651349,-490.0,0.00016602,2]
[366397265,1750230651359,-1000.8,0.00016602,2]
[366397266,1750230651369,-621.55,0.00016602,2]
[366397267,1750230651379,-1452.18,0.00016602,2]
[366397268,1750230651389,-490.0,0.00016602,2]
[366397269,1750230651399,-437.19125681,0.00016602,2]
[366397270,1750230651409,-838.71,0.00016602,2]
[366397271,1750230651419,-490.0,0.00016602,2]
[366397272,1750230651428,-490.0,0.00016602,2]
[366397273,1750230651438,-490.0,0.00016602,2]
[366397274,1750230651448,-1150.33,0.00016602,2]
[366397275,1750230651457,-626.02,0.00016602,2]
[366397276,1750230651468,-734.67,0.00016602,2]
[366397277,1750230651478,-490.0,0.00016602,2]
[366397278,1750230651487,-490.0,0.00016602,2]